bitfinex/quotes_SOLUSD_20230701
["timestamp","ask_amount","ask_price","bid_price","bid_amount"]
[1688197872629,93.9093,18.393,18.383,23.009]
[1688197875441,55.0,18.392,18.383,23.009]
[1688197876345,65.83719922,18.392,18.383,23.009]
[1688197876723,88.83619922,18.392,18.383,23.009]
[1688197876922,65.83719922,18.392,18.383,23.009]
[1688197879840,55.0,18.392,18.383,131.097]
[1688197880041,55.0,18.392,18.383,23.009]
[1688197883348,93.9093,18.393,18.383,23.009]
[1688197885344,10.83719922,18.399,18.383,23.009]
[1688197885561,59.241,18.398,18.383,23.009]
[1688197885740,55.0,18.397,18.383,23.009]
[1688197886453,55.0,18.397,18.38,35.16]
[1688197886753,55.0,18.397,18.383,23.009]
[1688197887847,27.25141497,18.399,18.39,35.27]
[1688197888052,99.3821,18.403,18.393,22.996]
[1688197888832,28.40938338,18.408,18.393,22.996]
[1688197888833,22.981,18.407,18.393,22.996]
[1688197889035,113.5309,18.407,18.393,22.996]
[1688197889456,172.7409,18.407,18.393,22.996]
[1688197891063,113.5309,18.407,18.393,22.996]
[1688197892356,55.0,18.406,18.393,22.996]
[1688197892850,90.5499,18.407,18.393,22.996]
[1688197893157,90.5499,18.407,18.397,22.991]
[1688197893351,22.981,18.407,18.397,22.991]
[1688197894042,55.0,18.406,18.397,22.991]
[1688197894858,77.981,18.406,18.397,22.991]
[1688197897254,77.981,18.406,18.39,176.5]
[1688197897452,77.981,18.406,18.391,20.0]
[1688197897659,77.981,18.406,18.392,22.999]
[1688197900158,77.981,18.406,18.391,43.0]
[1688197902357,77.981,18.406,18.391,102.213]
[1688197902857,77.981,18.406,18.391,210.254]
[1688197903550,77.981,18.406,18.391,42.999]
[1688197903953,22.981,18.406,18.391,42.999]
[1688197904157,22.979,18.408,18.391,151.04]
[1688197904364,22.98,18.407,18.391,151.04]
[1688197905362,55.0,18.406,18.391,151.04]
[1688197905662,22.983,18.405,18.391,151.04]
[1688197905866,55.0,18.404,18.391,151.04]
[1688197907554,77.984,18.404,18.391,151.04]
[1688197909466,55.0,18.404,18.391,151.04]
[1688197909766,77.984,18.404,18.391,151.04]
[1688197910771,35.36,18.4,18.385,59.23]
[1688197910956,22.994,18.396,18.382,108.093]
[1688197911448,55.0,18.395,18.382,108.093]
[1688197911656,55.0,18.395,18.385,23.006]
[1688197911959,22.996,18.394,18.385,23.006]
[1688197912166,55.0,18.393,18.385,23.006]
[1688197913368,77.994,18.396,18.385,23.006]
[1688197913565,55.0,18.395,18.385,23.006]
[1688197913762,77.995,18.395,18.385,23.006]
[1688197914470,55.0,18.395,18.385,23.006]
[1688197914668,77.995,18.395,18.385,23.006]
[1688197915466,55.0,18.395,18.385,23.006]
[1688197916750,77.995,18.395,18.385,23.006]
[1688197916957,55.0,18.395,18.385,23.006]
[1688197921264,27.11745209,18.396,18.385,23.006]
[1688197921682,59.238,18.398,18.385,23.006]
[1688197922573,117.0093,18.403,18.386,20.0]
[1688197922772,94.0233,18.403,18.391,23.0]
[1688197924974,55.0,18.402,18.391,23.0]
[1688197928265,77.986,18.402,18.391,23.0]
[1688197928780,55.0,18.402,18.391,23.0]
[1688197929977,77.986,18.402,18.391,23.0]
[1688197932977,55.0,18.402,18.391,23.0]
[1688197933177,121.13738902,18.403,18.391,23.0]
[1688197934584,55.0,18.402,18.391,23.0]
[1688197935378,121.13738902,18.403,18.391,23.0]
[1688197935680,94.0233,18.403,18.391,23.0]
[1688197935878,27.68716881,18.407,18.391,23.0]
[1688197936274,22.98,18.408,18.391,23.0]
[1688197936875,82.124,18.408,18.391,23.0]
[1688197937181,92.7878,18.407,18.391,23.0]
[1688197937386,55.0,18.406,18.391,23.0]
[1688197940485,77.982,18.406,18.391,23.0]
[1688197941475,55.0,18.406,18.391,23.0]
[1688197943080,77.981,18.406,18.391,23.0]
[1688197946091,92.7878,18.407,18.391,23.0]
[1688197947499,55.0,18.406,18.391,23.0]
[1688197952987,77.981,18.406,18.391,23.0]
[1688197956189,55.0,18.406,18.391,23.0]
[1688197959103,77.482,18.406,18.391,23.0]
[1688197960305,54.5,18.406,18.391,23.0]
[1688197960906,77.481,18.406,18.391,23.0]
[1688197962594,54.5,18.406,18.391,23.0]
[1688197963004,77.481,18.406,18.391,23.0]
[1688197965919,22.981,18.406,18.391,23.0]
[1688197967009,120.20411487,18.407,18.391,23.0]
[1688197967314,143.18411487,18.407,18.391,23.0]
[1688197967519,55.0,18.406,18.391,23.0]
[1688197969902,77.981,18.406,18.391,23.0]
[1688197974416,22.992,18.398,18.391,23.0]
[1688197974598,55.0,18.397,18.391,23.0]
[1688197974796,55.0,18.397,18.389,23.002]
[1688197975114,77.993,18.397,18.389,23.002]
[1688197976705,55.0,18.397,18.389,23.002]
[1688197976901,59.226,18.398,18.389,23.002]
[1688197977219,82.218,18.398,18.389,23.002]
[1688197978222,22.993,18.397,18.389,23.002]
[1688197978726,55.0,18.396,18.389,23.002]
[1688197980619,77.994,18.396,18.389,23.002]
[1688197982222,55.0,18.396,18.389,23.002]
[1688197982426,55.0,18.397,18.389,23.002]
[1688197984025,77.993,18.397,18.389,23.002]
[1688197985626,22.993,18.397,18.389,23.002]
[1688197985923,86.16420807,18.398,18.389,23.002]
[1688197986215,86.16420807,18.398,18.381,3.0]
[1688197986216,421.479,18.409,18.395,22.994]
[1688197986408,94.9081,18.408,18.395,22.994]
[1688197987012,154.1181,18.408,18.395,22.994]
[1688197989307,55.0,18.407,18.395,22.994]
[1688197997631,77.98,18.407,18.395,22.994]
[1688197997932,55.0,18.407,18.395,22.994]
[1688197998319,77.98,18.407,18.395,22.994]
[1688197999132,55.0,18.407,18.395,22.994]
[1688197999821,2.61382492,18.415,18.401,3.0]
[1688198000030,2.61382492,18.415,18.405,190.108]
[1688198000217,2.61382492,18.415,18.406,157.7877236]
[1688198000537,2.61382492,18.415,18.408,190.072]
[1688198000734,2.61382492,18.415,18.409,20.0]
[1688198001040,2.61382492,18.415,18.41,82.125]
[1688198001223,2.61382492,18.415,18.411,20.0]
[1688198001419,2.61382492,18.415,18.412,22.973]
[1688198017847,90.0389,18.424,18.413,20.0]
[1688198018049,96.6019,18.447,18.416,167.025]
[1688198018251,96.6019,18.439,18.417,234.7662535]
[1688198018439,22.929,18.448,18.426,189.893]
[1688198018634,57.937,18.45,18.427,20.0]
[1688198018948,57.937,18.45,18.433,189.813]
[1688198019145,158.35586749,18.45,18.433,189.813]
[1688198019343,123.34586749,18.45,18.433,189.813]
[1688198019843,158.52586749,18.45,18.433,189.813]
[1688198020551,181.45286749,18.45,18.433,189.813]
[1688198020737,192.29006671,18.45,18.433,189.813]
[1688198020936,192.16006671,18.45,18.433,189.813]
[1688198021561,181.32286749,18.45,18.433,189.813]
[1688198022057,55.0,18.449,18.433,189.813]
[1688198022237,77.928,18.449,18.433,189.813]
[1688198022840,77.928,18.449,18.433,82.021]
[1688198023052,35.05,18.44,18.427,59.097]
[1688198023356,22.942,18.438,18.427,22.955]
[1688198023752,55.0,18.437,18.427,22.955]
[1688198024142,55.0,18.438,18.427,22.955]
[1688198024356,55.0,18.437,18.427,22.955]
[1688198024556,90.2708,18.436,18.427,22.955]
[1688198024742,55.0,18.435,18.427,22.955]
[1688198029440,77.945,18.435,18.427,22.955]
[1688198033565,77.945,18.435,18.421,166.975]
[1688198034352,90.2708,18.436,18.426,22.956]
[1688198035059,22.947,18.434,18.41,64.820741]
[1688198035267,35.05,18.43,18.413,107.907]
[1688198035558,22.954,18.428,18.413,82.114]
[1688198035747,55.0,18.427,18.413,22.972]
[1688198035947,22.957,18.426,18.413,22.972]
[1688198036260,147.445,18.425,18.413,22.972]
[1688198036454,22.959,18.424,18.413,22.972]
[1688198036657,55.0,18.423,18.413,22.972]
[1688198036846,170.403,18.425,18.413,22.972]
[1688198037244,147.445,18.425,18.413,22.972]
[1688198037858,206.591,18.425,18.413,22.972]
[1688198042967,233.09844792,18.425,18.413,22.972]
[1688198045648,256.05644792,18.425,18.413,22.972]
[1688198047372,22.965,18.419,18.41,22.975]
[1688198047570,55.0,18.418,18.41,22.975]
[1688198047770,77.966,18.418,18.41,22.975]
[1688198047973,77.966,18.418,18.4,59.183]
[1688198048265,22.971,18.415,18.403,22.984]
[1688198048568,55.0,18.414,18.403,22.984]
[1688198051956,82.154,18.415,18.403,22.984]
[1688198052175,55.0,18.414,18.403,22.984]
[1688198055482,55.0,18.415,18.403,22.984]
[1688198056561,77.971,18.415,18.403,22.984]
[1688198060477,55.0,18.415,18.403,22.984]
[1688198062180,26.96756958,18.416,18.403,22.984]
[1688198062364,35.05,18.43,18.404,20.0]
[1688198062569,93.5889,18.426,18.411,190.04]
[1688198062771,22.955,18.428,18.411,190.04]
[1688198063486,55.0,18.427,18.411,190.04]
[1688198064587,77.955,18.427,18.411,190.04]
[1688198064773,22.955,18.427,18.411,190.04]
[1688198066089,55.0,18.426,18.411,190.04]
[1688198067791,77.957,18.426,18.411,190.04]
[1688198067972,62.835304,18.428,18.411,190.04]
[1688198068177,85.789304,18.428,18.411,190.04]
[1688198069482,62.835304,18.428,18.411,190.04]
[1688198070990,55.0,18.427,18.411,190.04]
[1688198075996,77.956,18.427,18.411,190.04]
[1688198080301,104.93992585,18.427,18.411,190.04]
[1688198083198,115.77712507,18.427,18.411,190.04]
[1688198085000,26.98392585,18.427,18.411,190.04]
[1688198085400,62.835304,18.428,18.411,190.04]
[1688198085585,62.835304,18.428,18.412,9.56915239]
[1688198085786,98.4329,18.427,18.416,82.1]
[1688198086596,55.0,18.426,18.416,82.1]
[1688198095611,82.24445335,18.426,18.416,82.1]
[1688198098403,82.24445335,18.426,18.416,22.968]
[1688198098591,105.20145335,18.426,18.41,34.92]
[1688198098786,105.20145335,18.426,18.412,22.972]
[1688198099005,82.24445335,18.426,18.412,22.972]
[1688198099698,105.20045335,18.426,18.412,22.972]
[1688198100205,82.24445335,18.426,18.412,22.972]
[1688198101805,105.20045335,18.426,18.412,22.972]
[1688198102107,82.24445335,18.426,18.412,22.972]
[1688198102409,105.20045335,18.426,18.412,22.972]
[1688198102594,105.20145335,18.426,18.412,22.972]
[1688198102908,82.24445335,18.426,18.412,22.972]
[1688198103107,105.20045335,18.426,18.412,22.972]
[1688198107906,27.24445335,18.426,18.412,22.972]
[1688198108215,506.218,18.447,18.42,34.92]
[1688198108518,398.5,18.447,18.424,189.906]
[1688198108696,108.611162,18.442,18.435,189.8]
[1688198109098,97.5128,18.449,18.435,189.8]
[1688198109397,10.83719922,18.454,18.435,189.8]
[1688198109608,10.83719922,18.454,18.44,35.13]
[1688198109609,27.62293169,18.449,18.44,35.13]
[1688198109809,97.5128,18.459,18.442,22.935]
[1688198110106,22.919,18.457,18.442,22.935]
[1688198110410,175.59,18.47,18.451,22.925]
[1688198110411,166.56,18.468,18.451,22.925]
[1688198110602,22.913,18.461,18.451,22.925]
[1688198111199,22.913,18.461,18.449,22.927]
[1688198111601,34.99,18.46,18.447,22.929]
[1688198111913,22.919,18.457,18.444,22.933]
[1688198112216,34.99,18.46,18.434,107.789]
[1688198112217,22.929,18.449,18.434,107.789]
[1688198112599,22.931,18.446,18.437,22.941]
[1688198112815,55.0,18.445,18.437,22.941]
[1688198113995,55.0,18.446,18.437,22.941]
[1688198114818,77.931,18.446,18.437,22.941]
[1688198115407,55.0,18.446,18.437,22.941]
[1688198116113,55.0,18.447,18.437,22.941]
[1688198116517,22.926,18.451,18.437,22.941]
[1688198117914,34.99,18.45,18.437,22.941]
[1688198118120,22.931,18.447,18.437,22.941]
[1688198118500,22.931,18.447,18.427,59.094]
[1688198118708,22.931,18.447,18.428,20.0]
[1688198119098,55.0,18.446,18.428,20.0]
[1688198119415,22.937,18.442,18.431,22.949]
[1688198119617,75.0,18.441,18.431,22.949]
[1688198119806,22.939,18.44,18.431,22.949]
[1688198120121,55.0,18.439,18.431,22.949]
[1688198120310,77.94,18.439,18.431,22.949]
[1688198120505,77.94,18.439,18.429,22.951]
[1688198122011,77.94,18.439,18.427,22.954]
[1688198122405,136.999,18.439,18.425,22.957]
[1688198123814,244.759,18.439,18.425,22.957]
[1688198124119,22.949,18.432,18.423,22.96]
[1688198124505,97.951,18.431,18.423,22.96]
[1688198125907,157.078,18.431,18.423,22.96]
[1688198126321,157.078,18.431,18.421,22.961]
[1688198126528,157.078,18.431,18.419,22.964]
[1688198131121,157.077,18.431,18.417,22.967]
[1688198134120,216.162,18.431,18.417,22.967]
[1688198134828,141.162,18.431,18.417,22.967]
[1688198135030,55.0,18.43,18.417,22.967]
[1688198135235,22.956,18.427,18.417,22.967]
[1688198135523,77.957,18.426,18.417,22.967]
[1688198136139,55.0,18.426,18.417,22.967]
[1688198136337,22.959,18.424,18.415,22.969]
[1688198136634,22.964,18.42,18.412,22.973]
[1688198136840,77.965,18.419,18.412,22.973]
[1688198137011,55.0,18.418,18.41,22.975]
[1688198137931,55.0,18.418,18.41,82.127]
[1688198139236,995.1,18.485,18.454,323.36590257]
[1688198139420,995.1,18.485,18.425,184.14396916]
[1688198139421,93.9938,18.479,18.45,69.67]
[1688198139617,93.9938,18.479,18.463,22.91]
[1688198139829,22.891,18.479,18.463,22.91]
[1688198140028,108.420004,18.479,18.463,22.91]
[1688198143732,20.0,18.478,18.463,22.91]
[1688198144236,55.0,18.477,18.463,22.91]
[1688198144432,20.0,18.476,18.463,22.91]
[1688198144622,55.0,18.475,18.463,22.91]
[1688198144936,20.0,18.474,18.463,22.91]
[1688198145341,55.0,18.473,18.463,22.91]
[1688198145636,20.0,18.472,18.463,22.91]
[1688198145834,55.0,18.471,18.463,22.91]
[1688198146238,54.39884518,18.471,18.461,22.913]
[1688198146734,54.39884518,18.471,18.451,107.688]
[1688198147034,22.902,18.47,18.459,22.914]
[1688198147219,22.902,18.47,18.451,81.942]
[1688198147925,22.893,18.477,18.452,20.0]
[1688198148123,26.82519396,18.476,18.459,189.55]
[1688198148324,22.892,18.478,18.46,20.0]
[1688198148640,22.893,18.477,18.465,22.907]
[1688198149044,27.68025594,18.48,18.465,22.907]
[1688198149619,131.311004,18.479,18.465,22.907]
[1688198150331,108.420004,18.479,18.465,22.907]
[1688198150734,131.311004,18.479,18.465,22.907]
[1688198151346,190.242004,18.479,18.465,22.907]
[1688198151549,131.311004,18.479,18.465,22.907]
[1688198151727,108.420004,18.479,18.465,22.907]
[1688198151930,108.420004,18.479,18.465,81.883]
[1688198153550,22.89,18.479,18.465,81.883]
[1688198154443,113.8383,18.481,18.465,81.883]
[1688198154644,22.889,18.481,18.465,81.883]
[1688198154833,77.89,18.48,18.465,81.883]
[1688198155856,77.89,18.48,18.465,22.907]
[1688198156234,136.818,18.48,18.465,22.907]
[1688198157150,136.818,18.48,18.463,22.91]
[1688198157449,136.818,18.48,18.464,22.909]
[1688198158151,22.89,18.48,18.464,22.909]
[1688198159455,55.0,18.479,18.464,22.909]
[1688198159747,22.895,18.476,18.464,22.909]
[1688198159936,77.895,18.475,18.464,22.909]
[1688198160639,77.895,18.475,18.462,22.911]
[1688198161653,22.899,18.472,18.462,22.911]
[1688198161947,107.517,18.481,18.462,22.911]
[1688198161948,86.41167306,18.483,18.462,22.911]
[1688198162147,96.7265,18.48,18.462,22.911]
[1688198162737,22.893,18.478,18.462,22.911]
[1688198163540,55.0,18.477,18.462,22.911]
[1688198163746,22.896,18.475,18.462,22.911]
[1688198163950,55.0,18.474,18.462,22.911]
[1688198164147,96.7265,18.48,18.462,35.4408]
[1688198164341,96.7265,18.48,18.463,67.52912]
[1688198164543,119.6165,18.48,18.468,22.904]
[1688198165243,119.6165,18.48,18.463,58.98]
[1688198165244,178.5445,18.48,18.463,58.98]
[1688198165434,178.5445,18.48,18.466,22.906]
[1688198165642,55.0,18.479,18.466,22.906]
[1688198165945,22.895,18.476,18.464,22.908]
[1688198166138,22.898,18.473,18.464,22.908]
[1688198166544,22.904,18.469,18.45,17.48]
[1688198166758,96.7265,18.48,18.455,22.919]
[1688198166937,22.9,18.472,18.462,22.91]
[1688198167256,22.898,18.473,18.462,22.91]
[1688198167443,55.0,18.472,18.462,22.91]
[1688198167643,77.9,18.472,18.462,22.91]
[1688198168156,55.0,18.472,18.462,22.91]
[1688198168453,22.9,18.472,18.462,22.91]
[1688198168657,55.0,18.471,18.462,22.91]
[1688198168857,77.901,18.471,18.462,22.91]
[1688198169163,55.0,18.477,18.462,189.522]
[1688198169345,119.6165,18.48,18.462,189.522]
[1688198169549,22.887,18.482,18.463,12.52912]
[1688198169852,20.0,18.481,18.468,81.869]
[1688198170851,42.888,18.481,18.468,81.869]
[1688198171342,22.888,18.481,18.469,20.0]
[1688198171545,22.888,18.481,18.472,22.898]
[1688198172550,22.888,18.481,18.465,107.603]
[1688198173054,55.0,18.48,18.468,22.903]
[1688198173662,22.889,18.48,18.468,22.903]
[1688198173857,55.0,18.479,18.468,22.903]
[1688198174060,22.892,18.478,18.468,22.903]
[1688198175555,22.892,18.478,18.465,33.74419922]
[1688198176950,22.892,18.478,18.463,12.52912]
[1688198177157,149.9207,18.477,18.463,12.52912]
[1688198177351,149.9207,18.477,18.463,35.43912]
[1688198177548,22.896,18.475,18.463,22.91]
[1688198177748,55.0,18.474,18.463,22.91]
[1688198177949,22.899,18.472,18.463,22.91]
[1688198178154,94.9207,18.477,18.463,22.91]
[1688198178459,94.9207,18.477,18.463,35.43912]
[1688198178658,117.8137,18.477,18.463,35.43912]
[1688198178849,58.913,18.485,18.463,35.43912]
[1688198179051,90.1003,18.481,18.463,35.43912]
[1688198179450,112.9883,18.481,18.463,35.43912]
[1688198179759,17.45,18.48,18.463,22.91]
[1688198179955,22.895,18.475,18.45,17.46]
[1688198180261,22.895,18.475,18.463,22.909]
[1688198180561,55.0,18.474,18.463,22.909]
[1688198180857,22.9,18.472,18.463,22.909]
[1688198181265,55.0,18.474,18.463,22.909]
[1688198181266,27.9,18.474,18.463,22.909]
[1688198182870,50.797,18.474,18.463,22.909]
[1688198183854,20.0,18.473,18.463,22.909]
[1688198184059,55.0,18.472,18.463,22.909]
[1688198184262,20.0,18.471,18.463,22.909]
[1688198185864,55.0,18.47,18.463,22.909]
[1688198186068,22.901,18.471,18.463,22.909]
[1688198186373,55.0,18.47,18.463,22.909]
[1688198186583,77.902,18.47,18.463,22.909]
[1688198186885,58.943,18.476,18.463,22.909]
[1688198187073,75.0,18.475,18.463,22.909]
[1688198188553,86.4556376,18.477,18.463,22.909]
[1688198188756,55.0,18.476,18.463,22.909]
[1688198188960,22.897,18.474,18.463,22.909]
[1688198189275,77.899,18.473,18.463,22.909]
[1688198189474,22.899,18.473,18.463,22.909]
[1688198189658,55.0,18.472,18.463,22.909]
[1688198190561,22.899,18.473,18.463,22.909]
[1688198190877,55.0,18.472,18.463,22.909]
[1688198191277,77.899,18.472,18.463,22.909]
[1688198192770,55.0,18.472,18.463,22.909]
[1688198192973,55.0,18.473,18.463,22.909]
[1688198193568,77.898,18.473,18.463,22.909]
[1688198193765,98.1092,18.472,18.463,22.909]
[1688198194076,55.0,18.471,18.463,22.909]
[1688198197377,98.1092,18.472,18.463,22.909]
[1688198199463,55.0,18.471,18.456,59.002]
[1688198199659,55.0,18.471,18.457,20.0]
[1688198199874,55.0,18.471,18.461,22.912]
[1688198200071,55.0,18.472,18.461,22.912]
[1688198200472,55.0,18.48,18.461,22.912]
[1688198200668,22.883,18.485,18.462,17.39095566]
[1688198200867,22.879,18.488,18.47,189.435]
[1688198201276,94.5714,18.489,18.47,206.895]
[1688198201474,94.5714,18.489,18.471,75.37546429]
[1688198201671,27.03459737,18.491,18.476,189.377]
[1688198202075,22.875,18.492,18.476,189.377]
[1688198202380,22.874,18.492,18.476,189.377]
[1688198202564,22.874,18.492,18.476,81.834]
[1688198203380,22.874,18.492,18.476,22.894]
[1688198203592,55.0,18.491,18.476,22.894]
[1688198203880,22.881,18.487,18.476,22.894]
[1688198204083,55.0,18.486,18.476,22.894]
[1688198204282,77.883,18.486,18.476,22.894]
[1688198204879,91.2882,18.485,18.476,22.894]
[1688198205085,55.0,18.484,18.476,22.894]
[1688198206069,77.884,18.484,18.476,22.894]
[1688198206583,77.884,18.484,18.474,22.896]
[1688198208376,20.0,18.483,18.472,22.898]
[1688198208573,22.89,18.48,18.472,22.898]
[1688198208773,77.891,18.479,18.47,22.901]
[1688198208986,55.0,18.478,18.472,22.899]
[1688198209189,55.0,18.478,18.465,58.973]
[1688198209892,150.2012,18.485,18.465,58.973]
[1688198210186,75.0,18.484,18.466,11.54583786]
[1688198210394,22.891,18.479,18.469,22.902]
[1688198210571,55.0,18.478,18.469,22.902]
[1688198210768,77.893,18.478,18.469,22.902]
[1688198212991,77.893,18.478,18.465,58.973]
[1688198212992,77.893,18.478,18.467,22.904]
[1688198214279,136.827,18.478,18.46,34.63]
[1688198214474,136.827,18.478,18.461,10.01277422]
[1688198214679,136.827,18.478,18.465,22.908]
[1688198214889,136.827,18.478,18.458,58.996]
[1688198215183,136.827,18.478,18.459,32.33780654]
[1688198215889,136.827,18.478,18.464,22.908]
[1688198216491,136.827,18.478,18.462,22.91]
[1688198216697,136.827,18.478,18.459,20.0]
[1688198216918,136.827,18.478,18.46,10.12119253]
[1688198217099,136.827,18.478,18.457,20.0]
[1688198217100,136.827,18.478,18.458,13.68873251]
[1688198217277,136.827,18.478,18.459,20.0]
[1688198217477,136.827,18.478,18.462,22.911]
[1688198217888,136.827,18.478,18.462,81.897]
[1688198217889,22.893,18.478,18.462,81.897]
[1688198218096,22.89,18.48,18.463,65.39236524]
[1688198218401,22.89,18.48,18.468,22.904]
[1688198219995,55.0,18.479,18.468,22.904]
[1688198220194,77.891,18.479,18.468,22.904]
[1688198220497,77.891,18.479,18.468,20.404]
[1688198220901,77.891,18.479,18.463,58.98]
[1688198221401,77.891,18.479,18.466,22.906]
[1688198224293,77.891,18.479,18.46,69.78]
[1688198224497,77.891,18.479,18.464,22.909]
[1688198230990,77.891,18.479,18.463,22.91]
[1688198238196,22.891,18.479,18.463,22.91]
[1688198238496,177.00495601,18.485,18.464,64.60596743]
[1688198238800,118.03595601,18.485,18.47,116.75]
[1688198239202,140.91995601,18.485,18.47,116.75]
[1688198239433,140.91995601,18.485,18.471,55.0]
[1688198239434,91.2882,18.485,18.471,55.0]
[1688198239613,91.2882,18.485,18.475,81.838]
[1688198239816,22.88,18.488,18.475,81.838]
[1688198241295,96.3671,18.492,18.475,81.838]
[1688198241505,22.874,18.492,18.48,34.89]
[1688198241704,119.2411,18.492,18.483,22.885]
[1688198244421,96.3671,18.492,18.483,22.885]
[1688198244811,27.71788096,18.496,18.483,22.885]
[1688198245017,55.0,18.495,18.483,22.885]
[1688198246019,22.874,18.492,18.483,22.885]
[1688198247330,22.874,18.492,18.481,22.887]
[1688198249324,75.0,18.491,18.479,22.889]
[1688198249526,22.88,18.488,18.477,22.892]
[1688198249711,55.0,18.487,18.477,22.892]
[1688198249912,22.884,18.485,18.477,22.892]
[1688198250725,22.884,18.485,18.476,22.894]
[1688198251131,22.884,18.485,18.464,27.5946681]
[1688198251306,22.884,18.485,18.471,22.9]
[1688198251507,114.9682,18.484,18.471,22.9]
[1688198253810,55.0,18.483,18.471,22.9]
[1688198254016,22.887,18.482,18.471,22.9]
[1688198255224,77.886,18.483,18.471,22.9]
[1688198255629,55.0,18.483,18.471,22.9]
[1688198255815,77.886,18.483,18.471,22.9]
[1688198256327,55.0,18.483,18.471,22.9]
[1688198256720,77.886,18.483,18.471,22.9]
[1688198257122,92.0832,18.484,18.471,22.9]
[1688198257324,55.0,18.483,18.471,22.9]
[1688198257530,92.0832,18.484,18.471,22.9]
[1688198260128,118.61947309,18.484,18.471,22.9]
[1688198262116,141.50347309,18.484,18.471,22.9]
[1688198262426,55.0,18.483,18.471,22.9]
[1688198262612,77.886,18.483,18.471,22.9]
[1688198263833,22.886,18.483,18.471,22.9]
[1688198265236,55.0,18.482,18.471,22.9]
[1688198267936,118.61947309,18.484,18.471,22.9]
[1688198268118,55.0,18.483,18.471,33.73719922]
[1688198269221,118.61947309,18.484,18.471,33.73719922]
[1688198269439,92.0832,18.484,18.475,81.838]
[1688198270030,26.41518844,18.489,18.475,81.838]
[1688198270234,98.8555,18.492,18.475,92.67519922]
[1688198270433,20.0,18.491,18.476,10.83719922]
[1688198270635,98.8555,18.492,18.481,81.81]
[1688198271014,98.8555,18.492,18.481,92.64719922]
[1688198271222,98.8555,18.492,18.482,10.83719922]
[1688198271532,26.59477393,18.494,18.485,22.883]